Cogmind - Beta 17 *** ADVENTURER MODE // 2026.07.19 @ 18:52:45 Player: lando Result: Destroyed self with Rocket Launcher Performance ------------- Evolutions (0) 0 Regions Visited (2) 400 Robots Destroyed (20) 100 Value Destroyed (506) 506 Prototype IDs (0) 0 Alien Tech Used (0) 0 Bonus (0) 0 TOTAL SCORE: 1006 Bonus ------- None Cogmind --------- Core Integrity 0/250 Matter 268/300 Energy 240/250 System Corruption 0% Temperature Hot (224) Movement Rolling (120) Ox2 Location -10/Mines Parts ------- > --- POWER (1) -------- Ion Engine > --- PROPULSION (2) --- Wheel Compact Wheel > --- UTILITY (2) ------ High-capacity Storage Unit Structural Scanner > --- WEAPON (2) ------- Particle Gun Rocket Launcher > --- INVENTORY (20) --- Ion Engine Wheel Wheel Wheel Wheel Wheel Wheel Heat Sink Heat Sink Particle Gun Particle Gun Particle Gun Assault Rifle Rocket Launcher Rocket Launcher Mining Laser Peak State ------------ > --- POWER ------------ Ion Engine > --- PROPULSION ------- Wheel Wheel > --- UTILITY ---------- High-capacity Storage Unit Structural Scanner > --- WEAPON ----------- Rocket Launcher Rocket Launcher > --- INVENTORY -------- Ion Engine Ion Engine Wheel Wheel Wheel Wheel Wheel Wheel Wheel Compact Wheel Heat Sink Heat Sink Particle Gun Particle Gun Particle Gun Particle Gun Assault Rifle Rocket Launcher Rocket Launcher Mining Laser [Rating: 11] Favorites ----------- Power Ion Engine Engine Ion Engine Propulsion Wheel Wheel Wheel Utility High-capacity Storage Unit Device Structural Scanner Storage High-capacity Storage Unit Weapon Particle Gun Energy Gun Particle Gun Ballistic Gun Assault Rifle Launcher Rocket Launcher Special Weapon Mining Laser Build | -11 -10 -10 ------- Run | Yrd Mat Min Slots Evolved . | . . . Power . | . . . Propulsion . | . . . Utility . | . . . Weapon . | . . . Parts Attached 24 | 7 10 7 Power 2 | 1 . 1 Engine 2 | 1 . 1 Core . | . . . Reactor . | . . . Propulsion 5 | 2 2 1 Treads . | . . . Leg . | . . . Wheel 5 | 2 2 1 Hover . | . . . Flight . | . . . Utility 4 | 1 3 . Device 1 | . 1 . Storage 3 | 1 2 . Processor . | . . . Hackware . | . . . Protection . | . . . Artifact . | . . . Weapon 13 | 3 5 5 Energy Gun 6 | 2 2 2 Energy Cannon . | . . . Ballistic Gun 2 | 1 1 . Ballistic Cannon . | . . . Launcher 3 | . . 3 Special Weapon 2 | . 2 . Impact Weapon . | . . . Slashing Weapon . | . . . Piercing Weapon . | . . . Special Melee Weapon . | . . . Unidentified Prototypes . | . . . Parts Lost 4 | . . 4 Power 1 | . . 1 Propulsion 2 | . . 2 Utility . | . . . Weapon 1 | . . 1 Highest Loss Streak 4 | . . 4 To Critical Strikes . | . . . Average Backups 15 | 5 17 17 Power 1 | . 1 1 Propulsion 4 | 3 4 6 Utility 2 | . 2 2 Weapon 7 | 1 8 7 Tool/Special . | . . . Unused Backups 14 | . 6 8 Power 1 | . . 1 Propulsion 10 | . 6 4 Utility 2 | . . 2 Weapon 1 | . . 1 Tool/Special . | . . . Average Slot Usage (%) 97 | . 98 94 Engine 13 | . 14 10 Wheel 27 | . 27 26 Device 11 | . 10 14 Storage 15 | . 16 14 Energy Gun 13 | . 11 20 Ballistic Gun 10 | . 14 . Launcher 1 | . . 7 Special Weapon 1 | . 2 . Peak Build Rating 11 | 6 10 11 Average Rating 8 | 4 9 10 On Entrance 5 | . 6 9 Avg Prop Armor Cover (%) . | . . . Naked Turns . | . . . Heaviest Build 54 | 13 53 54 Greatest Support 26 | 26 26 26 Greatest Overweight (x) 4 | 4 4 2 Average Overweight (x) . | . . 1 Largest Inventory Capacity 20 | 8 20 20 Average Capacity 17 | 7 19 20 Most Carried 20 | 8 20 20 Average Carried 15 | 5 17 17 Final Capacity 20 | 8 20 20 Final Carried 20 | 8 20 16 Class Distribution -------------------- 100% | Mutant Dominant Class ---------------- Mutant | -10/Materials Mutant | -10/Mines Resources | -11 -10 -10 ----------- Run | Yrd Mat Min Matter Collected 692 | 272 242 178 Remotely . | . . . Salvage Created 533 | 74 376 83 Parts 37 | 3 26 8 Haulers Intercepted . | . . . Recyclers Shooed . | . . . Parts Field Recycled . | . . . Retrieved Matter . | . . . Parts Self-Destructed . | . . . Prevented . | . . . Parts Restored . | . . . Kills | -11 -10 -10 ------- Run | Yrd Mat Min Combat Hostiles Destroyed 15 | . 11 4 Guns 15 | . 11 4 Classes Destroyed 6 | 2 3 1 Tunneler 2 | 1 . 1 Recycler 1 | 1 . . Watcher 2 | . 2 . Swarmer 5 | . 5 . Grunt 8 | . 6 2 Demolisher 2 | . . 2 Best Kill Streak 4 | 1 4 3 Combat Bots Only 4 | . 4 2 Max Kills in Single Turn 1 | 1 1 1 Gunslinging . | . . . Exploded . | . . . Melee . | . . . Uniques/NPCs Destroyed . | . . . Combat | -11 -10 -10 -------- Run | Yrd Mat Min Hostile Shots Fired 57 | . 26 31 Missed 10 | . 7 3 Hits 47 | . 19 28 Projectile 47 | . 19 28 AOE 17 | . . 17 Critical Strikes 4 | . 2 2 Damage Taken 863 | . 178 685 Core 251 | . 66 185 Absorbed by Shields . | . . . Ignored by Resistances 246 | . 55 191 Core Remaining (%) 100 | 100 . . Volleys Fired 44 | 4 28 12 Largest 2 | 2 2 2 Hottest 130 | 90 100 130 Shots Fired 80 | 8 48 24 Gun 67 | 8 45 14 Cannon . | . . . Launcher 10 | . . 10 Special 3 | . 3 . Kinetic 26 | 2 24 . Thermal 44 | 6 24 14 Explosive 10 | . . 10 Electromagnetic . | . . . Robot Hit Streak 15 | 4 8 15 Robot Miss Streak 1 | 1 1 1 Penetration Max . | . . . Secondary Targets . | . . . Shots Hit Robots 58 | 7 32 19 Core Hits 41 | 4 18 19 Critical Kills . | . . . Critical Parts Destroyed . | . . . Critical Strikes 2 | . 1 1 Burn 2 | . 1 1 Melee Attacks . | . . . Impact . | . . . Slashing . | . . . Piercing . | . . . Sneak Attacks . | . . . Combat Hostiles . | . . . Follow-up Attacks . | . . . Damage Inflicted 924 | 78 438 408 Guns 697 | 78 438 181 Cannons . | . . . Explosions 227 | . . 227 Melee . | . . . Ramming . | . . . Kinetic 256 | 19 237 . Thermal 441 | 59 201 181 Explosive 227 | . . 227 Electromagnetic . | . . . Impact . | . . . Slashing . | . . . Piercing . | . . . Highest Corruption . | . . . Average Corruption . | . . . Corruption Purged . | . . . Corruption Blocked . | . . . Overload Shots . | . . . Overflow Damage . | . . . Projectiles . | . . . Explosions . | . . . Melee . | . . . Knockbacks . | . . . Impact . | . . . Kinetic . | . . . Secondary . | . . . Self-Inflicted Damage 45 | . . 45 Shots 2 | . . 2 Rammed . | . . . Targets Rammed . | . . . Kicked . | . . . Crushed . | . . . Highest Temperature 256 | 60 132 256 Average Temperature 53 | 29 39 91 Received Heat Transfer 210 | . 96 114 Siege Activations . | . . . Martial Activations . | . . . Shielding Activations . | . . . Robots Disrupted . | . . . Combat Hostiles . | . . . Robots Corrupted . | . . . Combat Hostiles . | . . . Parts Fried . | . . . Impact Corruptions . | . . . Robots Melted . | . . . Combat Hostiles . | . . . Parts Melted 1 | . . 1 Heat Transferred 1234 | 161 555 518 Parts Sabotaged . | . . . Parts Stolen . | . . . Parts Stripped . | . . . Power Chain Reactions . | . . . Alert | -11 -10 -10 ------- Run | Yrd Mat Min Maximum Alert Level 1 | . 1 . Low Security (%) 98 | 100 97 100 Level 1 1 | . 2 . Level 2 . | . . . Level 3 . | . . . Level 4 . | . . . Level 5 . | . . . High Security . | . . . Max Security . | . . . Peak Influence 210 | 5 210 64 Initial 51 | . . 51 Average 38 | . 47 35 Influence Increases 560 | 10 395 155 Destroy 0b10 Robot/C 300 | . 220 80 Destroy 0b10 Robot/NC 25 | 10 10 5 Destroy Leader 74 | . 54 20 Successful Hack 17 | . 17 . Destroy Structure 54 | . 4 50 Lose Combat Pursuer 90 | . 90 . Influence Decreases 488 | 10 237 241 Entered New Map 107 | . . 107 Time Decay 284 | 10 180 94 Lost Part 40 | . . 40 Purge Threat 57 | . 57 . Squads Dispatched 2 | . 2 . Investigation 2 | . 2 . Extermination . | . . . Reinforcement . | . . . Assault . | . . . Garrison . | . . . Intercept . | . . . Searches Triggered . | . . . Construction Impeded . | . . . Haulers Reinforced . | . . . Active Scanning Responses . | . . . Cargo Convoy Interrupts . | . . . Stealth | -11 -10 -10 --------- Run | Yrd Mat Min Distress Signals 1 | . 1 . Communications Jammed . | . . . Distress Signals . | . . . Times Spotted 19 | . 15 4 Peak Tracking Total 8 | . 8 2 Tactical Retreats 3 | . 3 . Traps | -11 -10 -10 ------- Run | Yrd Mat Min Traps Triggered 2 | . 2 . Indirectly . | . . . Trap Hack Attempts . | . . . Triggered . | . . . Disarmed . | . . . Reprogrammed . | . . . Reused . | . . . Traps Extracted . | . . . Installed . | . . . Triggered . | . . . Machines | -11 -10 -10 ---------- Run | Yrd Mat Min Machines Disabled . | . . . Max in Single Turn . | . . . Machines Repaired . | . . . Machines Dismantled . | . . . Machines Sabotaged . | . . . Overloaded Fab Kills . | . . . Hacking | -11 -10 -10 --------- Run | Yrd Mat Min Machines Accessed 7 | . 7 . Terminals 6 | . 6 . Fabricators . | . . . Repair Stations . | . . . Recycling Units 1 | . 1 . Scanalyzers . | . . . Garrison Access . | . . . Total Hacks 19 | . 19 . Successful 10 | . 10 . Failed 9 | . 9 . Catastrophic . | . . . Database Lockouts . | . . . Manual 14 | . 14 . Terminals 15 | . 15 . Fabricators . | . . . Repair Stations . | . . . Recycling Units 4 | . 4 . Scanalyzers . | . . . Garrison Access . | . . . Terminal Hacks 6 | . 6 . Branch Access Points 1 | . 1 . Emergency Access Points 1 | . 1 . Unreport Threat 1 | . 1 . Recall Investigation 1 | . 1 . Registered Components 1 | . 1 . Zone Layout 1 | . 1 . Fabricator Hacks . | . . . Repair Station Hacks . | . . . Recycling Unit Hacks 1 | . 1 . Report Inventory 1 | . 1 . Scanalyzer . | . . . Garrison Access Hacks . | . . . Unauthorized Hacks . | . . . Terminals . | . . . Fabricators . | . . . Repair Stations . | . . . Recycling Units . | . . . Scanalyzers . | . . . Garrison Access . | . . . Data Cores Recovered . | . . . Used . | . . . Hacking Detections 5 | . 5 . Full Trace Events 1 | . 1 . Feedback Events . | . . . Feedback Blocked . | . . . Robot Schematics Acquired . | . . . Robots Built . | . . . Authchips . | . . . Time . | . . . Total Robot Build Rating . | . . . Part Schematics Acquired . | . . . Parts Built . | . . . Authchips . | . . . Time . | . . . Total Part Build Rating . | . . . Part Studies Acquired . | . . . Parts Repaired . | . . . Time . | . . . Parts Recycled . | . . . Recycled Matter . | . . . Retrieved Matter . | . . . Retrieved Components . | . . . Parts Scanalyzed . | . . . Part Schematics Acquired . | . . . Parts Damaged . | . . . Bothacking | -11 -10 -10 ------------ Run | Yrd Mat Min Used RIF Installer . | . . . Robots Hacked . | . . . Non-combat . | . . . Combat . | . . . Robot Hacks Applied . | . . . Relay Couplers Released . | . . . Fabnet Peak Effective % . | . . . Robots Rewired . | . . . Allies Hacked . | . . . Hacks Repelled . | . . . Allies | -11 -10 -10 -------- Run | Yrd Mat Min Total Allies . | . . . Largest Group . | . . . Highest-Rated Group . | . . . Highest-Rated Ally . | . . . Total Orders . | . . . Ally Attacks . | . . . Total Damage . | . . . Kills . | . . . Allies Corrupted . | . . . Allies Melted . | . . . Intel | -11 -10 -10 ------- Run | Yrd Mat Min Active Infowar (turns) 820 | . 603 217 Structural 820 | . 603 217 Robot Analysis Total . | . . . Derelict Logs Recovered 1 | . . 1 Drone Launches . | . . . Drone Recoveries . | . . . Exploration | -11 -10 -10 ------------- Run | Yrd Mat Min Turns Passed 1179 | 184 778 217 Spaces Moved 846 | 129 584 133 Core 37 | 37 . . Treads . | . . . Legs . | . . . Wheels 809 | 92 584 133 Hover . | . . . Flight . | . . . Fastest Speed 50 | 50 90 105 Average Speed 106 | 118 104 106 Slowest Speed 250 | 250 140 120 Overloaded Moves . | . . . Propulsion Burnouts . | . . . Robots Hopped . | . . . Potential Cave-ins . | . . . Cave-ins Triggered . | . . . Exploration Rate (%) 31 | 6 62 25 Regions Visited 2 Branch Regions 1 Pre-discovered Areas . | . . . Known Exits Taken 1 | . 1 . Unknown Exits Taken 1 | 1 . . Scrap Searched . | . . . Spaces Dug 3 | . 3 . Terrain Destroyed 68 | . 3 65 Melee . | . . . Projectile 3 | . 3 . AOE 65 | . . 65 Terrain Rammed . | . . . Walls Destroyed . | . . . Machines Disabled . | . . . Actions | -11 -10 -10 --------- Run | Yrd Mat Min Total 1039 | 149 705 185 Wait 74 | . 42 32 Move 844 | 128 583 133 Hop . | . . . Pick Up 32 | 10 22 . Fast Attach 9 | 4 5 . Attach 10 | 2 4 4 Detach 5 | . 5 . Swap 7 | 1 2 4 Drop 14 | . 14 . Fire 44 | 4 28 12 Melee . | . . . Ram . | . . . Kick . | . . . Crush . | . . . Escape Stasis . | . . . Rewire . | . . . Trap . | . . . Miscellaneous . | . . . Route ------- -11/Scrapyard -10/Materials (discovered 3 exits: [*Mat] / *Min x2) -10/Mines History --------- Turn | Location | Event 30 | -11/Scrapyard | Discovered new exit (range 16) 185 | -11/Scrapyard | Entered Materials 320 | -10/Materials | Build established: Mutant 483 | -10/Materials | Identified exit to Mines 512 | -10/Materials | Discovered new exit (range 8) 963 | -10/Materials | Entered Mines 964 | -10/Mines | Assembled infested the area 1016 | -10/Mines | Core integrity fell below 50% 1023 | -10/Mines | Core integrity fell below 20% 1045 | -10/Mines | Lost 4 parts (1p2n1w) 1180 | -10/Mines | Destroyed self with Rocket Launcher Last Messages --------------- 01098_ U-05 Engineer lays Concrete. 01105_ Acquired 18 matter. 01106_ U-05 Engineer builds a Wall. 01106_ Acquired 15 matter. 01107_ Acquired 20 matter. 01108_ Acquired 17 matter. 01109_ Acquired 19 matter. 01111_ Acquired 20 matter. 01111_ U-05 Engineer builds a Wall. 01115_ Acquired derelict log, extracted data. Data stored: Storage entrances (x1). 01118_ Acquired 19 matter. 01119_ Acquired 8 matter. 01122_ U-05 Engineer lays Concrete. 01123_ U-05 Engineer builds a Wall. 01150_ Critical hit (Burn: +37). 01170_ Aluminum Leg melted. 01170_ G-47 Trooper destroyed. 01177_ T-07 Excavator destroyed. 01180_ G-34 Mercenary destroyed. Map ----- +----------------------------------------------------+ | ???????????????????????###########????? | | ???????????????????####### ##????? | | ??????????????????####### ### ####### | | ?????????????????#### #### ####### | | ????????????????#### ##### ### ## | | ???????????????#### ##### ### ## | | ??????????????#### ##?## | | ??????????????### ###?#### # | | ??????????????## ## ######## # | | ??????????????## ############## # | | ??????????????## ############" ### # | | ????????????####$###?????###" ## # | | ????????????#### ### ######## # # | | ????????????## # ######### # # # # | | ????????????###" ### ## ### # # | | ?????????????### "## ## ## | | ?????????????####;## % # # | | ?????????????###;#;# %% %% #### | | ?????????????## %%%%% % % ## | | ????????????? # # | | ?????????????## ######### # | | ?????????????## ########## | | ????????####### ##?????########## | | ???????######## ##??????########## | | ???????### ##????????????### # # | | ???????## @ ##?????????????#### ## | | ?????#### =%= ##?????????????#### | | ????##### [ ####??????????????? ## | | ????### [ ! ######???????????????? ### | | ????## = ####?????????????????? ### | | ????## ## #????????????????????? ??? | | ????## ######????????????????????? ??? | | ???### #####?????????????????????????? | | ??### ##????????????????????????????? | | ??## ##????????????????????????????? | | ?## ##????????????????????????????? | | ?## #????????????????????????????? | | ?##$ ?????????????????????????????? | | ?## ?????????????????????????????? | | ?### ?????????????????????????????? | | ?### ?????????????????????????????? | | ??# #????????????????????????????? | | ??? ###????????????????????????????? | | ??? ####????????????????????????????? | | ????? ##??????????????????????????????? | | ??????????????????????????????????????? | | ??????????????????????????????????????? | | ??????????????????????????????????????? | | ??????????????????????????????????????? | | ??????????????????????????????????????? | +----------------------------------------------------+ Best States ------------- Heat Dissipation 25 Energy Generation 10 Energy Capacity 250 Matter Stores 368 Matter Capacity 400 Sight Range 16 Terrain Scan Density 10 Resistance: KI 20 Resistance: TH 20 Resistance: EX 20 Resistance: EM 20 Resistance: I 20 Resistance: S 20 Resistance: P 20 Evasion (%) 50 Offensive Hacking 10 Item Schematics ----------------- None Robot Schematics ------------------ None Fabricated ------------ Nothing Repaired ---------- Nothing Studied --------- None Alien Tech Used ----------------- None Achievements -------------- None Challenges ------------ None Game ------ Seed PhasingPlasmaProjector Manual? 0 Play Time 00:17:56 Cumulative 15.0 hours Start 2026.07.19 @ 18:34:54 End 2026.07.19 @ 18:52:45 Sessions 1 Manual Loads 0 Difficulty Adventurer Special Mode None Game No. 9 Rogue 0 Adventurer 9 Explorer 0 Win Type - Total 1 Types 1/0/0/0/0/0/0/0/0/0 Lore% 10 Gallery% 17 Achievement% 19 Wizard Run 0 Options --------- Layout 2 ASCII 0 Keyboard 0 Movement Arrows Keybinds 0 Fullscreen 1 Font 24/Tallcaps Map View 50x44 Zoom Use 14% Tactical HUD 1 Map Filters NONE Filters NONE Steam 1 RUN: fed17e23-d487-42ac-afd5-6c9a2ece16f7